fUST/lending_fUST_20250928
["ID","MTS","AMOUNT","RATE_DAILY","PERIOD"]
[388080134,1759007457283,-480.0,0.0003589,9]
[388080135,1759007457292,-480.0,0.0003589,9]
[388080136,1759007457301,-833.35,0.0003589,9]
[388080137,1759007457310,-480.0,0.0003589,9]
[388080138,1759007457319,-480.0,0.0003589,9]
[388080139,1759007457328,-1733.89,0.0003589,9]
[388080140,1759007457337,-151.0,0.0003589,30]
[388080141,1759007457346,-480.0,0.0003589,9]
[388080142,1759007457509,-480.0,0.0003589,9]
[388080143,1759007457519,-480.0,0.0003589,9]
[388080144,1759007457529,-734.86,0.0003589,9]
[388080145,1759007457538,-480.43,0.0003589,9]
[388080146,1759007457548,-480.0,0.0003589,9]
[388080147,1759007457557,-480.0,0.0003589,9]
[388080148,1759007457567,-480.0,0.0003589,9]
[388080149,1759007457576,-6268.2,0.0003589,9]
[388080150,1759007457585,-840.29,0.0003589,9]
[388080151,1759007457595,-480.0,0.0003589,9]
[388080152,1759007457604,-1476.57,0.0003589,9]
[388080153,1759007457613,-480.0,0.0003589,9]
[388080154,1759007457623,-480.0,0.0003589,9]
[388080155,1759007457633,-1000.0,0.0003589,9]
[388080156,1759007457642,-480.0,0.0003589,9]
[388080157,1759007457654,-480.0,0.0003589,9]
[388080158,1759007457664,-480.0,0.0003589,9]
[388080159,1759007457674,-480.0,0.0003589,9]
[388080160,1759007457683,-713.67,0.0003589,9]
[388080161,1759007457693,-151.0,0.0003589,30]
[388080162,1759007457703,-480.0,0.0003589,9]
[388080163,1759007457713,-504.76262577,0.0003589,9]
[388080164,1759007457722,-480.0,0.0003589,9]
[388080165,1759007457732,-734.74,0.0003589,9]
[388080166,1759007457742,-898.68,0.0003589,9]
[388080167,1759007457753,-1114.86,0.0003589,9]
[388080168,1759007457763,-480.0,0.0003589,9]
[388080169,1759007457773,-480.0,0.0003589,9]
[388080170,1759007457783,-480.0,0.0003589,9]
[388080171,1759007457792,-482.39,0.0003589,9]
[388080172,1759007457802,-233.76631357,0.0003589,30]
[388080173,1759007457812,-480.0,0.0003589,9]
[388080174,1759007457822,-151.0,0.0003589,30]
[388080175,1759007457831,-290.893564,0.0003589,30]
[388080176,1759007457842,-298.16864275,0.0003589,9]
[388080177,1759007457851,-234.99155145,0.0003589,9]
[388080178,1759007457861,-290.893564,0.0003589,30]
[388080179,1759007457870,-151.0,0.0003589,30]
[388080180,1759007457880,-480.52094518,0.0003589,9]
[388080181,1759007457890,-480.0,0.0003589,9]
[388080182,1759007457900,-290.893564,0.0003589,30]
[388080183,1759007457910,-480.0,0.0003589,9]
[388080184,1759007457919,-290.893564,0.0003589,30]
[388080185,1759007457929,-480.0,0.0003589,9]
[388080186,1759007457939,-480.0,0.0003589,9]
[388080187,1759007457949,-906.19,0.0003589,9]
[388080188,1759007457958,-742.82,0.0003589,9]
[388080189,1759007457967,-151.0,0.0003589,30]
[388080190,1759007457977,-151.0,0.0003589,30]
[388080191,1759007457986,-480.0,0.0003589,9]
[388080192,1759007457995,-198.483229,0.0003589,30]
[388080193,1759007458005,-159.575235,0.0003589,30]
[388080194,1759007458015,-651.96,0.0003589,9]
[388080195,1759007458025,-159.575235,0.0003589,30]
[388080196,1759007458034,-480.0,0.0003589,9]
[388080197,1759007458044,-480.0,0.0003589,9]
[388080198,1759007458053,-480.0,0.0003589,9]
[388080199,1759007458063,-159.575235,0.0003589,30]
[388080200,1759007458072,-1101.47,0.0003589,9]
[388080201,1759007458082,-159.575235,0.0003589,30]
[388080202,1759007458092,-541.94,0.0003589,9]
[388080203,1759007458101,-198.483229,0.0003589,30]
[388080204,1759007458111,-480.0,0.0003589,9]
[388080205,1759007458121,-198.483229,0.0003589,30]
[388080206,1759007458130,-198.483229,0.0003589,30]
[388080207,1759007458139,-156.82156244,0.0003589,9]
[388080208,1759007458149,-151.0,0.0003589,30]
[388080209,1759007458158,-151.0,0.0003589,30]
[388080210,1759007458167,-837.43,0.0003589,9]
[388080211,1759007458177,-561.94,0.0003589,9]
[388080212,1759007458186,-480.0,0.0003589,9]
[388080213,1759007458196,-480.0,0.0003589,9]
[388080214,1759007458205,-981.21,0.0003589,9]
[388080215,1759007458215,-975.75,0.0003589,9]
[388080216,1759007458224,-151.0,0.0003589,30]
[388080217,1759007458235,-783.22,0.0003589,9]
[388080218,1759007458246,-151.0,0.0003589,30]
[388080219,1759007458255,-786.44,0.0003589,9]
[388080220,1759007458265,-480.0,0.0003589,9]
[388080221,1759007458274,-480.0,0.0003589,9]
[388080222,1759007458283,-233.57686639,0.0003589,9]
[388080223,1759007458293,-480.0,0.0003589,9]
[388080224,1759007458302,-480.0,0.0003589,9]
[388080225,1759007458311,-480.0,0.0003589,9]
[388080226,1759007458320,-480.6571173,0.0003589,9]
[388080227,1759007458330,-877.5,0.0003589,9]
[388080228,1759007458338,-720.9,0.0003589,9]
[388080229,1759007458348,-840.93,0.0003589,9]
[388080230,1759007458358,-551.58,0.0003589,9]
[388080231,1759007458367,-480.0,0.0003589,9]
[388080232,1759007458377,-489.64,0.0003589,9]
[388080233,1759007458386,-480.0,0.0003589,9]
[388080234,1759007458395,-1012.79,0.0003589,9]
[388080235,1759007458404,-3194.61,0.0003589,9]
[388080236,1759007458413,-480.0,0.0003589,9]
[388080237,1759007458422,-1645.39,0.0003589,9]
[388080238,1759007458431,-480.0,0.0003589,9]
[388080239,1759007458441,-850.85,0.0003589,9]
[388080240,1759007458450,-480.0,0.0003589,9]
[388080241,1759007458460,-480.0,0.0003589,9]
[388080242,1759007458470,-480.0,0.0003589,9]
[388080243,1759007458480,-480.0,0.0003589,9]
[388080244,1759007458489,-762.36,0.0003589,9]
[388080245,1759007458499,-480.0,0.0003589,9]
[388080246,1759007458508,-480.0,0.0003589,9]
[388080247,1759007458518,-480.0,0.0003589,9]
[388080248,1759007458527,-151.0,0.0003589,30]
[388080249,1759007458540,-847.28,0.0003589,9]
[388080250,1759007458549,-500.0,0.0003589,90]
[388080251,1759007458558,-699.52,0.0003589,9]
[388080252,1759007458568,-480.0,0.0003589,9]
[388080253,1759007458577,-580.44,0.0003589,9]
[388080254,1759007458589,-480.0,0.0003589,9]
[388080255,1759007458598,-480.0,0.0003589,9]
[388080256,1759007458608,-1473.86,0.0003589,9]
[388080257,1759007458619,-480.0,0.0003589,9]
[388080258,1759007458629,-480.0,0.0003589,9]
[388080259,1759007458638,-1233.92,0.0003589,9]
[388080260,1759007458648,-151.0,0.0003589,30]
[388080261,1759007458657,-480.0,0.0003589,9]
[388080262,1759007458666,-480.0,0.0003589,9]
[388080263,1759007458676,-566.94,0.0003589,9]
[388080264,1759007458685,-1518.24,0.0003589,9]
[388080265,1759007458695,-480.0,0.0003589,9]
[388080266,1759007458705,-453.43869655,0.0003589,9]
[388080267,1759007458715,-907.86,0.0003589,9]
[388080268,1759007458724,-754.78,0.0003589,9]
[388080269,1759007458733,-480.0,0.0003589,7]
[388080270,1759007458743,-480.0,0.0003589,9]
[388080271,1759007458752,-480.0,0.0003589,9]
[388080272,1759007458763,-480.0,0.0003589,9]
[388080273,1759007458772,-480.0,0.0003589,9]
[388080274,1759007458781,-480.0,0.0003589,9]
[388080275,1759007458791,-151.0,0.0003589,30]
[388080276,1759007458800,-480.0,0.0003589,9]
[388080277,1759007458810,-551.16824,0.0003589,30]
[388080278,1759007458819,-480.0,0.0003589,9]
[388080279,1759007458829,-551.16824,0.0003589,30]
[388080280,1759007458838,-480.0,0.0003589,9]
[388080281,1759007458847,-480.0,0.0003589,9]
[388080282,1759007458856,-551.16824,0.0003589,30]
[388080283,1759007458866,-480.0,0.0003589,9]
[388080284,1759007458875,-551.16824,0.0003589,30]
[388080285,1759007458884,-854.06,0.0003589,9]
[388080286,1759007458894,-480.0,0.0003589,9]
[388080287,1759007458903,-480.0,0.0003589,9]
[388080288,1759007458912,-480.0,0.0003589,9]
[388080289,1759007458921,-4492.84,0.0003589,9]
[388080290,1759007458931,-480.0,0.0003589,9]
[388080291,1759007458940,-480.0,0.0003589,9]
[388080292,1759007458951,-1121.49,0.0003589,9]
[388080293,1759007458960,-480.0,0.0003589,9]
[388080294,1759007458969,-505.85,0.0003589,9]
[388080295,1759007458978,-728.75,0.0003589,9]
[388080296,1759007458988,-480.0,0.0003589,9]
[388080297,1759007458997,-797.88,0.0003589,9]
[388080298,1759007459007,-480.0,0.0003589,9]
[388080299,1759007459016,-480.0,0.0003589,9]
[388080300,1759007459025,-480.0,0.0003589,9]
[388080301,1759007459034,-1666.19,0.0003589,9]
[388080302,1759007459043,-275.62831981,0.0003589,9]
[388080303,1759007459052,-151.0,0.0003589,30]
[388080304,1759007459062,-166.1,0.0003589,30]
[388080305,1759007459071,-151.0,0.0003589,30]
[388080306,1759007459081,-410.12835956,0.0003589,9]
[388080307,1759007459089,-485.56510646,0.0003589,9]
[388080308,1759007459099,-166.1,0.0003589,30]
[388080309,1759007459108,-480.0,0.0003589,9]
[388080310,1759007459117,-151.0,0.0003589,30]
[388080311,1759007459126,-810.74,0.0003589,9]
[388080312,1759007459136,-459.86289131,0.0003589,9]
[388080313,1759007459145,-166.1,0.0003589,30]
[388080314,1759007459154,-914.36,0.0003589,9]
[388080315,1759007459164,-480.0,0.0003589,9]
[388080316,1759007459174,-480.0,0.0003589,9]
[388080317,1759007459183,-166.1,0.0003589,30]
[388080318,1759007459193,-764.75,0.0003589,9]
[388080319,1759007459202,-755.85,0.0003589,9]
[388080320,1759007459211,-151.0,0.0003589,30]
[388080321,1759007459220,-1676.0,0.0003589,9]
[388080322,1759007459229,-480.0,0.0003589,9]
[388080323,1759007459238,-151.0,0.0003589,30]
[388080324,1759007459247,-480.0,0.0003589,9]
[388080325,1759007459256,-151.0,0.0003589,30]
[388080326,1759007459265,-151.0,0.0003589,30]
[388080327,1759007459274,-480.0,0.0003589,9]
[388080328,1759007459283,-480.0,0.0003589,9]
[388080329,1759007459293,-328.962149,0.0003589,15]
[388080330,1759007459304,-480.0,0.0003589,9]
[388080331,1759007459315,-480.0,0.0003589,9]
[388080332,1759007459325,-328.962149,0.0003589,15]
[388080333,1759007459334,-717.89,0.0003589,9]
[388080334,1759007459343,-480.0,0.0003589,9]
[388080335,1759007459352,-151.0,0.0003589,30]
[388080336,1759007459361,-328.962149,0.0003589,15]
[388080337,1759007459371,-480.0,0.0003589,9]
[388080338,1759007459380,-2077.69,0.0003589,9]
[388080339,1759007459390,-782.8,0.0003589,9]
[388080340,1759007459400,-817.26,0.0003589,9]
[388080341,1759007459409,-328.962149,0.0003589,15]
[388080342,1759007459419,-480.0,0.0003589,9]
[388080343,1759007459429,-3022.27396228,0.0003589,9]
[388080344,1759007459456,-499.999999,0.0003589,9]
[388080345,1759007459467,-3738.21438323,0.0003589,9]
[388080346,1759007695199,-166.02515209,0.00027068,14]
[388080351,1759007975996,160.0,0.00025205,2]
[388080373,1759008511233,59699.42527776,0.00033437,120]
[388080376,1759008526375,10000.01,0.00019063,7]
[388080377,1759008526398,10000.01,0.00019063,7]
[388080379,1759008526420,10000.01,0.00019063,7]
[388080380,1759008526442,10000.01,0.00019063,7]
[388080381,1759008526463,10000.01,0.00019063,7]
[388080382,1759008526485,10000.01,0.00019063,7]
[388080383,1759008526506,2920.26233358,0.00019063,7]
[388080384,1759008572130,-257.97484791,0.00028164,28]
[388080385,1759008572150,-159.2550529,0.0002895,2]
[388080386,1759008572170,-150.9999994,0.0002905,2]
[388080397,1759008632600,-196.438212,0.00030914,60]
[388080399,1759008632610,-1000.0,0.00030994,30]
[388080401,1759008632620,-168.0,0.0003162,2]
[388080403,1759008632629,-380.0,0.00031644,2]
[388080405,1759008632638,-168.0,0.00031992,2]
[388080407,1759008632647,-169.62692055,0.00032,120]
[388080409,1759008632657,-183.28330122,0.00032,120]
[388080411,1759008632666,-160.28645205,0.00032,120]
[388080413,1759008632675,-200.0,0.00032,2]
[388080415,1759008632684,-175.56499,0.00032612,2]
[388080417,1759008632693,-168.0,0.00032859,2]
[388080419,1759008632702,-17579.02265259,0.00032859,2]
[388080420,1759008632711,-297.0,0.00032871,3]
[388080422,1759008632720,-400.0,0.00032871,2]
[388080424,1759008632730,-1600.0,0.00032871,3]
[388080426,1759008632739,-500.0,0.00032872,2]
[388080428,1759008632748,-500.0,0.00032872,2]
[388080430,1759008632757,-370.31111499,0.00032872,2]
[388080432,1759008632767,-619.29667713,0.00032872,2]
[388080434,1759008632775,-500.0,0.00032872,2]
[388080437,1759008632785,-500.0,0.00032872,2]
[388080438,1759008632795,-500.0,0.00032872,2]
[388080440,1759008632805,-416.23621729,0.00032872,2]
[388080442,1759008632814,-500.0,0.00032872,2]
[388080444,1759008632823,-500.0,0.00032872,2]
[388080446,1759008632832,-500.0,0.00032872,2]
[388080448,1759008632841,-514.78738437,0.00032872,2]
[388080450,1759008632850,-500.0,0.00032872,2]
[388080452,1759008632859,-500.0,0.00032872,2]
[388080454,1759008632868,-500.0,0.00032872,2]
[388080456,1759008632877,-500.0,0.00032872,2]
[388080458,1759008632886,-500.0,0.00032872,2]
[388080460,1759008632895,-500.0,0.00032872,2]
[388080462,1759008632905,-500.0,0.00032872,2]
[388080464,1759008632914,-500.0,0.00032872,2]
[388080466,1759008632923,-500.0,0.00032872,2]
[388080468,1759008632933,-500.0,0.00032872,2]
[388080470,1759008632942,-500.0,0.00032872,2]
[388080472,1759008632951,-500.0,0.00032872,2]
[388080474,1759008632960,-500.0,0.00032872,2]
[388080476,1759008632970,-500.0,0.00032872,2]
[388080478,1759008632980,-586.47301422,0.00032872,2]
[388080480,1759008632989,-500.0,0.00032872,2]
[388080482,1759008632999,-500.0,0.00032872,2]
[388080484,1759008633009,-518.80331708,0.00032872,2]
[388080487,1759008633018,-500.0,0.00032872,2]
[388080488,1759008633027,-500.0,0.00032872,2]
[388080490,1759008633037,-162.99677386,0.00032872,2]
[388080492,1759008633047,-500.0,0.00032872,2]
[388080494,1759008633056,-1600.0,0.00032873,3]
[388080495,1759008633065,-223.22452299,0.00032873,2]
[388080497,1759008633076,-160.0,0.00032876,2]
[388080499,1759008633087,-500.0,0.00032877,2]
[388080501,1759008633096,-436.477004,0.00032877,2]
[388080503,1759008633106,-200.554,0.00033141,34]
[388080505,1759008633115,-168.0,0.00033142,2]
[388080507,1759008633125,-500.0,0.00033151,2]
[388080509,1759008633135,-168.0,0.00033174,2]
[388080511,1759008633145,-2241.68464002,0.00033339,2]
[388080513,1759008633161,-168.0,0.00033386,2]
[388080515,1759008633170,-4461.4,0.00033401,60]
[388080517,1759008633180,-168.0,0.00033411,2]
[388080519,1759008633190,-500.0,0.00033425,2]
[388080521,1759008633199,-189.3309625,0.00033437,7]
[388080523,1759008633209,-752.0,0.00033439,30]
[388080525,1759008633220,-21709.03447127,0.00033439,7]
[388080527,1759008633231,-23567.82167971,0.00033439,7]
[388080529,1759008633242,-802.65538473,0.00033439,7]
[388080582,1759008638441,-42711.05683137,0.00033439,7]
[388080583,1759008638451,-8400.83576183,0.00033439,2]
[388080584,1759008638460,-15470.47433776,0.00033439,2]
[388080624,1759008640359,-415.89798621,0.00033439,2]
[388080625,1759008640371,-4758.5,0.00033439,2]
[388080626,1759008640382,-28122.27500411,0.00033439,2]
[388080627,1759008640393,-13892.98011051,0.00033439,2]
[388080628,1759008640404,-14052.03969588,0.00033439,2]
[388080629,1759008640434,-1117.74283683,0.00033439,2]
[388080630,1759008640446,-13453.58360374,0.00033439,2]
[388080631,1759008640456,-300.0,0.00033439,2]
[388080632,1759008640467,-3882.73654418,0.00033439,2]
[388080633,1759008640477,-809.96302409,0.00033439,2]
[388080634,1759008640487,-258.28408775,0.00033439,2]
[388080635,1759008640496,-296.97300396,0.00033439,2]
[388080636,1759008640506,-327.11359133,0.00033439,2]
[388080637,1759008640515,-291.94107424,0.00033439,2]
[388080638,1759008640524,-51753.86847042,0.00033439,2]
[388080639,1759008640534,-637.44118038,0.00033439,2]
[388080640,1759008640543,-1362.26820816,0.00033439,2]
[388080641,1759008640552,-156.66903588,0.00033439,2]
[388080642,1759008640562,-375.87799197,0.00033439,2]
[388080643,1759008640571,-44589.1861468,0.00033439,2]
[388080667,1759008643483,-20768.40068442,0.00033439,2]
[388080669,1759008643591,-6048.81002434,0.00033439,2]
[388080672,1759008646432,-480.0,0.00033439,2]
[388080673,1759008646444,-10258.00702271,0.00033439,2]
[388080674,1759008646455,-1767.53171443,0.00033439,2]
[388080675,1759008646465,-3742.33892742,0.00033439,2]
[388080676,1759008646476,-2553.52593011,0.00033439,2]
[388080677,1759008646486,-157.6792694,0.00033439,2]
[388080678,1759008646495,-616.5195758,0.00033439,2]
[388080679,1759008646504,-1717.45149075,0.00033439,2]
[388080680,1759008646514,-2076.56451878,0.00033439,2]
[388080681,1759008646523,-276.8200578,0.00033439,2]
[388080682,1759008646532,-507.74729944,0.00033439,2]
[388080683,1759008646542,-468.00301122,0.00033439,2]
[388080684,1759008646562,-179.35609289,0.00033439,2]
[388080685,1759008646572,-189.22979494,0.00033439,2]
[388080686,1759008646582,-1397.31875854,0.00033439,2]
[388080687,1759008646592,-5896.44414982,0.00033439,2]
[388080688,1759008646602,-651.39901302,0.00033439,2]
[388080689,1759008646612,-12116.88619757,0.00033439,2]
[388080690,1759008646621,-166.70576063,0.00033439,2]
[388080691,1759008646631,-500.0,0.000335,5]
[388080692,1759008646641,-500.0,0.000335,5]
[388080693,1759008646651,-500.0,0.000335,5]
[388080694,1759008646661,-168.0,0.00033576,2]
[388080695,1759008646671,-500.0,0.000336,5]
[388080696,1759008646681,-500.0,0.000336,5]
[388080697,1759008646691,-168.0,0.00033737,2]
[388080698,1759008646700,-168.0,0.00033813,2]
[388080699,1759008646710,-74826.5615013,0.0003399,2]
[388080700,1759008646720,-160.0,0.00034,2]
[388080701,1759008646730,-500.0,0.00034048,5]
[388080702,1759008646740,-516.7706464,0.00034115,5]
[388080703,1759008646750,-1595.20392899,0.00034145,2]
[388080704,1759008646760,-1000.0,0.00034148,5]
[388080705,1759008646769,-366.23846183,0.00034248,2]
[388080706,1759008646779,-168.0,0.00034284,2]
[388080707,1759008646789,-189.3309625,0.000344,7]
[388080708,1759008646799,-168.0,0.00034544,2]
[388080709,1759008646808,-260.0,0.00034548,2]
[388080710,1759008646819,-982.84357827,0.00034565,2]
[388080711,1759008647219,-1258.84106175,0.00034565,2]
[388080712,1759008647240,-168.0,0.00034623,2]
[388080713,1759008647257,-1500.0,0.00034696,5]
[388080714,1759008647272,-920.2296175,0.000347,30]
[388080715,1759008647286,-284.44072039,0.00034733,2]
[388080716,1759008647300,-401.37203395,0.00034813,5]
[388080717,1759008647316,-523.20248802,0.00034813,2]
[388080718,1759008647330,-2914.83329987,0.00034832,2]
[388080719,1759008647345,-168.0,0.00034885,2]
[388080720,1759008647360,-151.0,0.00034981,30]
[388080721,1759008647373,-920.0,0.00034989,15]
[388080723,1759008647386,-199.0,0.00034989,14]
[388080724,1759008647399,-169.01669171,0.00035,120]
[388080726,1759008647413,-10653.55436734,0.00035,2]
[388080728,1759008647426,-320.53813325,0.00035,120]
[388080730,1759008647437,-1820.05171074,0.00035,2]
[388080731,1759008647450,-500.0,0.00035068,120]
[388080732,1759008647462,-500.0,0.00035068,120]
[388080733,1759008647476,-545.9855968,0.00035068,120]
[388080734,1759008647490,-360.0,0.00035096,2]
[388080735,1759008647505,-165.305455,0.00035144,60]
[388080736,1759008647520,-186.33,0.00035169,30]
[388080737,1759008647532,-217.39077659,0.00035169,30]
[388080738,1759008647542,-173.28,0.00035169,30]
[388080739,1759008647554,-202.16618813,0.00035169,30]
[388080740,1759008647570,-1341.21327484,0.00035173,2]
[388080741,1759008647583,-160.0,0.00035231,2]
[388080742,1759008647594,-233.76631357,0.00035231,2]
[388080743,1759008647609,-189.3309625,0.00035233,2]
[388080744,1759008647622,-2000.0,0.00035244,5]
[388080745,1759008647634,-3940.99247961,0.00035249,3]
[388080746,1759008647645,-164388.831385,0.00035259,2]
[388080747,1759008647661,-10509.313279,0.00035259,3]
[388080748,1759008647673,-151.257412,0.00035259,7]
[388080749,1759008647685,-151.0,0.00035259,7]
[388080750,1759008647698,-151.0,0.00035259,7]
[388080751,1759008647710,-151.0,0.00035259,7]
[388080752,1759008647722,-151.0,0.00035259,7]
[388080753,1759008647735,-370000.0,0.00035269,2]
[388080754,1759008647747,-151.0,0.00035269,7]
[388080755,1759008647760,-151.0,0.00035269,7]
[388080756,1759008647771,-151.0,0.00035269,7]
[388080757,1759008647783,-151.0,0.00035269,7]
[388080758,1759008647795,-151.0,0.00035269,7]
[388080759,1759008647808,-151.0,0.00035269,7]
[388080760,1759008647820,-151.0,0.00035269,7]
[388080761,1759008647832,-151.0,0.00035269,7]
[388080762,1759008647843,-226.257754,0.00035269,7]
[388080763,1759008647856,-151.0,0.00035269,7]
[388080764,1759008647868,-151.0,0.00035269,7]
[388080765,1759008647880,-993.649815,0.00035269,7]
[388080766,1759008647892,-993.649815,0.00035269,7]
[388080767,1759008647905,-151.0,0.00035269,7]
[388080768,1759008647917,-993.649815,0.00035269,7]
[388080769,1759008647929,-993.649815,0.00035269,7]
[388080770,1759008647941,-151.0,0.00035269,7]
[388080771,1759008647953,-151.0,0.00035269,7]
[388080772,1759008647966,-151.0,0.00035269,7]
[388080773,1759008647978,-330.700944,0.00035269,7]
[388080774,1759008647990,-330.700944,0.00035269,7]
[388080775,1759008648002,-330.700944,0.00035269,7]
[388080776,1759008648013,-330.700944,0.00035269,7]
[388080777,1759008648025,-151.0,0.00035269,7]
[388080778,1759008648038,-151.0,0.00035269,7]
[388080779,1759008648050,-151.0,0.00035269,7]
[388080780,1759008648063,-151.0,0.00035269,7]
[388080781,1759008648077,-500.0,0.00035273,5]
[388080782,1759008648100,-514.16553402,0.00035273,5]
[388080783,1759008648113,-507.47765638,0.00035273,5]
[388080784,1759008648125,-500.0,0.00035273,5]
[388080785,1759008648137,-336.68098752,0.00035273,5]
[388080786,1759008648148,-500.0,0.00035273,5]
[388080787,1759008648160,-500.0,0.00035273,5]
[388080788,1759008648173,-500.0,0.00035273,5]
[388080789,1759008648186,-500.0,0.00035273,5]
[388080790,1759008648197,-505.04014538,0.00035273,5]
[388080791,1759008648210,-500.0,0.00035273,2]
[388080792,1759008648223,-206.92078885,0.00035273,5]
[388080793,1759008648237,-500.0,0.00035273,5]
[388080794,1759008648253,-560.0,0.00035323,2]
[388080795,1759008648267,-800.0,0.00035325,3]
[388080796,1759008648281,-934.81,0.00035342,2]
[388080797,1759008648294,-1341.21327484,0.00035396,2]
[388080798,1759008648308,-151.0,0.000354,15]
[388080799,1759008648323,-151.0,0.000354,17]
[388080800,1759008648337,-151.0,0.000354,13]
[388080801,1759008648349,-2240.0,0.00035467,3]
[388080802,1759008648361,-417.998,0.00035471,2]
[388080803,1759008648373,-410.0,0.00035471,2]
[388080804,1759008648385,-635.0,0.00035471,2]
[388080805,1759008648397,-2161.0,0.00035471,2]
[388080806,1759008648409,-196.438212,0.0003548,60]
[388080807,1759008648422,-151.0,0.000355,17]
[388080808,1759008648433,-151.0,0.000355,14]
[388080809,1759008648445,-151.0,0.000355,11]
[388080810,1759008648456,-217.39,0.00035516,30]
[388080811,1759008648468,-202.16,0.00035516,30]
[388080812,1759008648481,-176.10970335,0.00035516,2]
[388080813,1759008648493,-4976.22085146,0.00035516,2]
[388080814,1759008648505,-500.0,0.00035569,30]
[388080815,1759008648517,-1313.66415987,0.00035586,3]
[388080816,1759008648528,-7510.31730891,0.00035596,3]
[388080817,1759008649464,-13038.28661419,0.00035596,3]
[388080818,1759008649474,-1313.66415987,0.00035596,3]
[388080819,1759008649483,-151.0,0.000356,14]
[388080820,1759008649493,-189.3309625,0.00035606,3]
[388080821,1759008649503,-189.3309625,0.00035606,3]
[388080822,1759008649513,-41097.2078462,0.00035606,3]
[388080823,1759008649523,-9195.64911909,0.00035606,3]
[388080824,1759008649533,-480.0,0.00035616,9]
[388080825,1759008649543,-480.0,0.00035616,9]
[388080826,1759008649553,-480.0,0.00035616,9]
[388080827,1759008649563,-623.27,0.00035616,9]
[388080828,1759008649572,-480.0,0.00035616,9]
[388080829,1759008649582,-637.02,0.00035616,9]
[388080830,1759008649592,-612.3,0.00035616,9]
[388080831,1759008649601,-480.0,0.00035616,9]
[388080832,1759008649611,-480.0,0.00035616,9]
[388080833,1759008649621,-480.0,0.00035616,9]
[388080834,1759008649631,-480.0,0.00035616,9]
[388080835,1759008649640,-480.0,0.00035616,9]
[388080836,1759008649649,-760.62,0.00035616,9]
[388080837,1759008649659,-924.07,0.00035616,9]
[388080838,1759008649669,-314.32798609,0.00035616,9]
[388080839,1759008649679,-480.0,0.00035616,9]
[388080840,1759008649688,-480.0,0.00035616,9]
[388080841,1759008649698,-480.0,0.00035616,9]
[388080842,1759008649707,-480.0,0.00035616,9]
[388080843,1759008649717,-480.0,0.00035616,9]
[388080844,1759008649726,-480.0,0.00035616,9]
[388080845,1759008649735,-480.0,0.00035616,9]
[388080846,1759008649744,-612.64,0.00035616,9]
[388080847,1759008649754,-603.57,0.00035616,9]
[388080848,1759008649763,-480.0,0.00035616,9]
[388080849,1759008649773,-440.37067205,0.00035616,9]
[388080850,1759008649783,-480.0,0.00035616,9]
[388080851,1759008649794,-480.0,0.00035616,9]
[388080852,1759008649803,-550.07673195,0.00035616,9]
[388080853,1759008649813,-480.0,0.00035616,9]
[388080854,1759008649822,-480.0,0.00035616,9]
[388080855,1759008649831,-480.0,0.00035616,9]
[388080856,1759008649840,-598.95,0.00035616,9]
[388080857,1759008649850,-480.0,0.00035616,9]